bitfinex/quotes_ETHUSD_20250422
["timestamp","ask_amount","ask_price","bid_price","bid_amount"]
[1745326416373,6.12157728,1633.6,1633.3,5.38197491]
[1745326417774,12.24332218,1633.6,1633.3,5.38197491]
[1745326417972,6.12189117,1633.5,1633.3,5.38197491]
[1745326420076,13.34716943,1633.6,1633.3,5.38197491]
[1745326420874,7.22544034,1633.6,1633.3,5.38197491]
[1745326421071,12.24331919,1633.6,1633.3,5.38197491]
[1745326421239,6.12157728,1633.6,1633.3,5.38197491]
[1745326421577,12.24333316,1633.6,1633.3,5.38197491]
[1745326421764,6.12186928,1633.5,1633.3,5.38197491]
[1745326423672,12.24330088,1633.6,1633.3,5.38197491]
[1745326423876,7.95274401,1633.6,1633.3,5.38197491]
[1745326425082,6.12188196,1633.5,1633.3,5.38197491]
[1745326428982,6.93137728,1633.6,1633.3,5.38197491]
[1745326429151,13.05310377,1633.6,1633.3,5.38197491]
[1745326429494,6.12182563,1633.5,1633.3,5.38197491]
[1745326431349,12.24391848,1633.5,1633.3,5.38197491]
[1745326431679,6.12182563,1633.5,1633.3,5.38197491]
[1745326432788,6.93144529,1633.6,1633.3,5.38197491]
[1745326433082,6.12164529,1633.6,1633.3,5.38197491]
[1745326433649,12.24342786,1633.6,1633.3,5.38197491]
[1745326433846,12.24334969,1633.6,1633.3,5.38197491]
[1745326434149,6.12164529,1633.6,1633.3,5.38197491]
[1745326434549,12.24341349,1633.6,1633.3,5.38197491]
[1745326434881,6.12164529,1633.6,1633.4,0.7651]
[1745326435186,6.12013096,1634.0,1633.5,3.94758641]
[1745326435387,6.12013096,1634.0,1633.5,3.18248641]
[1745326435567,6.12013096,1634.0,1633.6,0.7651]
[1745326435768,6.12013096,1634.0,1633.7,5.38123571]
[1745326435987,6.12042759,1633.9,1633.7,5.38123571]
[1745326436377,13.45925257,1634.0,1633.7,5.38123571]
[1745326436696,7.3389807,1634.0,1633.7,5.38123571]
[1745326437187,13.45919901,1634.0,1633.7,5.38123571]
[1745326437395,6.12034556,1633.9,1633.7,5.38123571]
[1745326438195,6.1207002,1633.8,1633.7,5.38123571]
[1745326438373,6.1207002,1633.8,1633.7,5.262]
[1745326438567,6.1207002,1633.8,1633.7,5.38063456]
[1745326439100,8.29677819,1633.9,1633.7,0.11863456]
[1745326439399,14.41738724,1633.9,1633.4,6.0552]
[1745326439580,6.12034556,1633.9,1633.8,0.11866881]
[1745326439895,12.24096211,1633.9,1633.4,6.0552]
[1745326440101,6.12034556,1633.9,1633.8,0.11713607]
[1745326440263,12.24099948,1633.9,1633.4,6.0552]
[1745326440465,6.12034556,1633.9,1633.8,0.11719616]
[1745326440794,7.4274436,1633.9,1633.8,0.11713614]
[1745326440960,6.12075508,1633.8,1633.4,6.0552]
[1745326441161,6.12075508,1633.8,1633.4,6.50407197]
[1745326441474,6.12074368,1633.8,1633.4,6.50407197]
[1745326441898,12.24173537,1633.8,1633.4,6.50407197]
[1745326442072,6.12074368,1633.8,1633.4,7.45447917]
[1745326442272,12.24172609,1633.8,1633.4,7.45447917]
[1745326443198,6.12074368,1633.8,1633.4,7.45447917]
[1745326443798,6.12048708,1633.9,1633.4,7.45447917]
[1745326444182,6.12048708,1633.9,1633.5,0.06121031]
[1745326444503,12.24110473,1633.9,1633.5,0.75156895]
[1745326444801,6.12008913,1634.0,1633.6,0.8192]
[1745326445185,13.01857756,1634.1,1633.6,0.8192]
[1745326445395,12.18807756,1634.1,1633.6,0.8192]
[1745326445572,18.30790904,1634.1,1633.6,0.8192]
[1745326445999,6.11999174,1634.0,1633.6,0.8192]
[1745326446706,12.23960593,1634.1,1633.8,0.8192]
[1745326447006,12.23960593,1634.1,1633.8,6.0552]
[1745326447302,6.11996926,1634.0,1633.8,6.0552]
[1745326448106,12.2396083,1634.1,1633.8,6.0552]
[1745326448314,13.01828398,1634.2,1633.8,6.0552]
[1745326448606,6.06836643,1634.2,1633.8,6.0552]
[1745326448807,6.11920723,1634.2,1633.8,6.0552]
[1745326448965,6.94964071,1634.3,1633.8,6.0552]
[1745326449170,6.11921034,1634.2,1633.8,6.0552]
[1745326449471,6.11912773,1634.3,1633.9,0.88039535]
[1745326450375,12.23825177,1634.3,1633.9,0.8192]
[1745326450707,6.06836643,1634.4,1634.0,0.8192]
[1745326450910,6.11828025,1634.5,1634.0,0.8192]
[1745326451207,6.11828025,1634.5,1634.0,0.880389]
[1745326451725,6.11828025,1634.5,1634.0,0.8192]
[1745326452419,12.23662967,1634.5,1634.0,0.8192]
[1745326452603,12.23662967,1634.5,1634.0,4.87370343]
[1745326452804,6.11922298,1634.2,1634.0,0.8192]
[1745326452982,6.11922298,1634.2,1634.0,6.0542]
[1745326453418,6.94919167,1634.4,1634.0,6.0542]
[1745326454310,6.11922457,1634.2,1634.0,6.0542]
[1745326454822,6.11899069,1634.3,1634.0,6.0542]
[1745326455125,12.23807772,1634.3,1634.0,6.0542]
[1745326455310,6.11899069,1634.3,1634.0,6.0542]
[1745326456698,12.23810626,1634.3,1634.0,6.0542]
[1745326457008,8.03268796,1634.3,1634.0,6.0542]
[1745326458193,6.11899069,1634.3,1634.0,6.0542]
[1745326458428,12.18700753,1634.4,1634.0,6.0542]
[1745326458931,18.30579013,1634.4,1634.0,6.0542]
[1745326459230,6.11882766,1634.3,1634.0,6.0542]
[1745326459526,6.94933741,1634.3,1633.8,0.8192]
[1745326459731,6.11982829,1634.1,1633.8,0.8192]
[1745326459888,12.2396839,1634.1,1633.8,0.8192]
[1745326460090,6.1199565,1634.0,1633.8,0.8192]
[1745326460291,19.0021834,1634.2,1633.8,0.8192]
[1745326460621,6.06836643,1634.2,1634.0,0.8192]
[1745326460824,6.06836643,1634.2,1634.1,5.234]
[1745326462102,6.06836643,1634.2,1634.1,6.0532]
[1745326464023,6.11850376,1634.4,1634.1,6.0532]
[1745326464225,6.11832004,1634.5,1634.1,6.0532]
[1745326464530,0.36781037,1634.6,1634.2,6.812564]
[1745326464835,0.36781037,1634.6,1634.3,0.8192]
[1745326469146,0.36781037,1634.6,1634.3,1.28825369]
[1745326469366,0.36781037,1634.6,1634.3,7.40701557]
[1745326469526,0.36781037,1634.6,1634.4,1.54100156]
[1745326469854,0.36781037,1634.6,1634.5,5.243]
[1745326473035,0.36781037,1634.6,1634.5,6.10447461]
[1745326473967,0.36781037,1634.6,1634.5,6.0423]
[1745326476449,0.36781037,1634.6,1634.5,9.10347359]
[1745326476650,0.36781037,1634.6,1634.5,11.00079312]
[1745326479440,0.36781037,1634.6,1634.5,10.93961953]
[1745326481181,0.36781037,1634.6,1634.5,7.13931953]
[1745326481402,0.36781037,1634.6,1634.5,5.242]
[1745326483489,0.36781037,1634.6,1634.3,1.23165369]
[1745326483806,0.36781037,1634.6,1634.5,0.7626]
[1745326484483,0.36781037,1634.6,1634.5,6.0046]
[1745326489615,0.36781037,1634.6,1634.5,5.242]
[1745326489802,0.36781037,1634.6,1634.5,5.7662]
[1745326491312,0.36781037,1634.6,1634.5,5.82737253]
[1745326491512,0.36781037,1634.6,1634.5,5.7662]
[1745326491677,0.36781037,1634.6,1634.5,6.5288]
[1745326492420,0.36781037,1634.6,1634.5,16.45942401]
[1745326492635,0.36781037,1634.6,1634.5,16.39825348]
[1745326493621,0.7923,1635.3,1634.9,0.7626]
[1745326493805,0.7923,1635.3,1635.0,5.241]
[1745326494708,0.7923,1635.6,1635.1,4.57512589]
[1745326494909,6.90643672,1635.6,1635.2,0.45751259]
[1745326495202,6.90648138,1635.6,1635.2,0.45751259]
[1745326495399,6.11473792,1635.4,1635.3,5.241]
[1745326495601,12.22975833,1635.4,1634.9,4.58447456]
[1745326495775,0.8184,1635.3,1635.0,5.241]
[1745326496217,6.93350462,1635.3,1634.8,0.8331]
[1745326496518,6.93350462,1635.3,1635.1,5.241]
[1745326496718,8.84518178,1635.3,1635.1,5.241]
[1745326496886,2.73007716,1635.3,1635.1,5.241]
[1745326497710,8.84519836,1635.3,1635.1,5.241]
[1745326497895,0.8184,1635.1,1634.7,3.75137456]
[1745326498217,6.93423389,1635.1,1634.8,5.241]
[1745326498517,2.12338593,1635.1,1634.8,5.241]
[1745326498716,5.12338593,1635.1,1634.8,5.241]
[1745326499216,3.8184,1635.1,1634.8,5.241]
[1745326500723,6.11636455,1635.0,1634.8,5.241]
[1745326501083,16.05054445,1635.1,1634.8,5.241]
[1745326501312,9.93440022,1635.1,1634.8,5.241]
[1745326501888,6.11620882,1635.0,1634.8,5.241]
[1745326502917,9.93440022,1635.1,1634.8,5.241]
[1745326503127,11.53940225,1635.1,1634.8,5.241]
[1745326503997,17.65550397,1635.1,1634.8,5.241]
[1745326504593,11.53940225,1635.1,1634.8,5.241]
[1745326505236,5.42340203,1635.1,1634.8,5.241]
[1745326505597,11.53927486,1635.1,1634.8,5.241]
[1745326505805,6.11635088,1635.0,1634.8,5.241]
[1745326508933,11.5394567,1635.1,1634.8,5.241]
[1745326509121,6.11621309,1635.0,1634.8,5.241]
[1745326510235,12.23267506,1635.0,1634.8,5.241]
[1745326510434,12.23272568,1635.0,1634.8,5.241]
[1745326510599,6.11621309,1635.0,1634.8,5.241]
[1745326510929,12.23273166,1635.0,1634.8,5.241]
[1745326511130,6.11658205,1634.9,1634.8,5.241]
[1745326511335,6.1171022,1634.8,1634.5,3.75137456]
[1745326511498,6.1171022,1634.8,1634.6,5.22]
[1745326511699,6.88728205,1634.9,1634.6,5.28116975]
[1745326512192,13.00418343,1634.9,1634.6,5.28116975]
[1745326512528,6.88728205,1634.9,1634.6,5.28116975]
[1745326513029,6.88728205,1634.9,1634.7,5.22]
[1745326513240,6.1169562,1634.8,1634.7,5.22]
[1745326513394,13.0042203,1634.9,1634.7,5.22]
[1745326513598,6.88728205,1634.9,1634.7,5.22]
[1745326514100,6.88732167,1634.9,1634.7,5.22]
[1745326514830,0.7707,1634.9,1634.7,5.22]
[1745326515022,6.88741626,1634.9,1634.7,5.22]
[1745326515829,13.00425198,1634.9,1634.7,5.22]
[1745326516131,6.88741626,1634.9,1634.7,5.22]
[1745326516328,13.00434726,1634.9,1634.7,5.22]
[1745326516499,6.88817976,1634.7,1634.3,5.9879]
[1745326516699,6.11785484,1634.6,1634.3,5.9879]
[1745326518738,6.11812094,1634.5,1634.3,5.221]
[1745326519117,6.11899281,1634.3,1634.2,5.221]
[1745326519459,6.88933585,1634.4,1634.2,5.221]
[1745326521056,6.11882763,1634.3,1634.2,5.221]
[1745326522560,6.11981237,1634.1,1633.9,5.221]
[1745326522867,12.23964869,1634.1,1633.9,5.221]
[1745326523153,12.23969483,1634.1,1633.9,5.221]
[1745326523316,6.89015937,1634.2,1633.9,5.221]
[1745326523517,6.11968082,1634.1,1633.9,5.221]
[1745326523744,12.23953441,1634.1,1633.9,5.221]
[1745326524042,13.00956953,1634.2,1633.9,5.221]
[1745326524624,6.11966201,1634.1,1633.9,5.221]
[1745326525854,6.93293046,1634.3,1633.9,7.82059902]
[1745326526153,6.06836643,1634.5,1634.0,3.75137456]
[1745326526154,6.11862583,1634.4,1634.0,3.75137456]
[1745326526845,6.11892995,1634.3,1633.9,8.5198]
[1745326528046,6.11920737,1634.2,1633.9,8.5198]
[1745326528244,6.11959339,1634.1,1633.9,5.221]
[1745326528447,6.11958626,1634.1,1633.9,5.221]
[1745326528761,6.11959572,1634.1,1633.9,5.221]
[1745326528955,6.11920737,1634.2,1633.9,5.221]
[1745326529659,6.11920737,1634.2,1633.9,7.83544]
[1745326529865,6.11920737,1634.2,1633.9,7.8966357]
[1745326530462,6.11920737,1634.2,1633.9,7.83544]
[1745326531058,13.0520503,1634.3,1633.9,7.83544]
[1745326531256,6.93293578,1634.3,1633.9,7.89663569]
[1745326531463,6.93293578,1634.3,1633.9,7.83544]
[1745326531762,6.93293578,1634.3,1633.9,7.89663569]
[1745326532058,6.93259183,1634.4,1634.0,0.78966357]
[1745326532355,6.93259183,1634.4,1634.1,0.06119322]
[1745326532549,6.93259183,1634.4,1634.0,1.61125318]
[1745326532746,6.93259183,1634.4,1634.0,1.55006357]
[1745326532954,13.05137066,1634.4,1634.0,1.55006357]
[1745326533140,6.11883924,1634.3,1634.0,1.55006357]
[1745326533545,6.93259183,1634.4,1634.0,1.55006357]
[1745326533741,13.05129301,1634.4,1634.0,1.55006357]
[1745326534165,6.93259183,1634.4,1634.0,1.55006357]
[1745326535161,19.11877677,1634.5,1634.0,1.55006357]
[1745326535365,6.11863417,1634.4,1634.0,1.55006357]
[1745326536029,13.00044179,1634.5,1634.0,1.55006357]
[1745326536232,6.06836643,1634.5,1634.1,0.06118976]
[1745326536461,6.06836643,1634.5,1634.2,0.7604]
[1745326536665,6.06836643,1634.5,1634.3,5.194]
[1745326536967,6.1175041,1634.7,1634.3,5.85062485]
[1745326536968,6.11747783,1634.7,1634.3,5.85062485]
[1745326537142,6.11747783,1634.7,1634.3,5.78944]
[1745326537465,12.23514987,1634.7,1634.3,5.78944]
[1745326537714,6.11772362,1634.6,1634.3,5.194]
[1745326537966,12.23579649,1634.6,1634.3,5.194]
[1745326538464,13.04969649,1634.6,1634.3,5.194]
[1745326538664,6.93162362,1634.6,1634.3,5.194]
[1745326539053,12.234361,1634.8,1634.3,5.194]
[1745326539244,12.234361,1634.8,1634.4,0.7604]
[1745326539431,6.11735338,1634.7,1634.4,0.7604]
[1745326540128,6.06836643,1634.9,1634.5,0.81487855]
[1745326540634,6.1159623,1635.1,1634.5,6.17899166]
[1745326540944,6.1159623,1635.1,1634.6,0.7537]
[1745326541148,6.1159623,1635.1,1634.7,5.25416587]
[1745326541347,6.1159623,1635.1,1634.7,5.85495246]
[1745326541574,12.23212023,1635.1,1634.7,5.79378659]
[1745326541943,6.11623646,1635.0,1634.7,5.79378659]
[1745326542453,6.11623646,1635.0,1634.7,5.193]
[1745326543276,0.8129,1634.9,1634.4,0.7537]
[1745326543441,6.11722922,1634.8,1634.7,5.193]
[1745326545787,0.8129,1634.9,1634.7,5.193]
[1745326545955,6.11644807,1635.0,1634.7,5.9467]
[1745326546867,12.23291508,1635.0,1634.7,5.9467]
[1745326547188,6.11621707,1635.0,1634.7,5.9467]
[1745326547379,6.92890184,1635.1,1634.7,6.54137]
[1745326547567,6.11640408,1635.0,1634.7,6.54137]
[1745326550685,12.18405371,1635.2,1634.7,6.54137]
[1745326551060,6.11632893,1635.0,1634.7,6.54137]
[1745326551281,12.23290455,1635.0,1634.7,6.54137]
[1745326551485,6.11632893,1635.0,1634.7,5.78767]
[1745326556287,12.23282209,1635.0,1634.7,5.78767]
[1745326556522,6.11705606,1634.8,1634.4,3.7537]
[1745326556673,6.11705606,1634.8,1634.6,5.192]
[1745326556874,6.92966189,1634.9,1634.6,5.192]
[1745326557810,6.11641144,1635.0,1634.7,0.7537]
[1745326557970,12.23295825,1635.0,1634.7,0.7537]
[1745326558307,12.23292945,1635.0,1634.6,5.192]
[1745326558508,12.23292945,1635.0,1634.6,5.78657]
[1745326559106,6.11641144,1635.0,1634.6,5.78657]
[1745326559281,6.11641144,1635.0,1634.7,0.7537]
[1745326559612,12.23291033,1635.0,1634.7,0.7537]
[1745326559787,6.11641144,1635.0,1634.7,0.7537]
[1745326559988,6.11680468,1634.9,1634.7,0.7537]
[1745326560504,6.11641144,1635.0,1634.7,0.7537]
[1745326561214,6.11641144,1635.0,1634.8,5.192]
[1745326562392,12.23294146,1635.0,1634.8,5.192]
[1745326563634,6.11641144,1635.0,1634.8,5.192]
[1745326564414,12.23288486,1635.0,1634.8,5.192]
[1745326564714,6.11641144,1635.0,1634.8,5.192]
[1745326564913,7.42095091,1635.0,1634.8,5.192]
[1745326565111,6.11658205,1634.9,1634.8,5.192]
[1745326567086,6.11799784,1634.6,1634.5,5.175]
[1745326567286,6.11763062,1634.7,1634.5,5.175]
[1745326567888,12.23527136,1634.7,1634.5,5.175]
[1745326568088,6.92883215,1635.1,1634.6,0.7537]
[1745326568284,6.92842778,1635.2,1634.7,0.7537]
[1745326568483,6.92849413,1635.2,1634.8,0.06115929]
[1745326568790,6.92849413,1635.2,1634.9,5.175]
[1745326569414,6.92810486,1635.3,1635.0,0.7537]
[1745326569592,6.11520486,1635.3,1635.0,1.34657]
[1745326569789,4.56427456,1635.5,1635.0,1.40772885]
[1745326569790,12.99586042,1635.5,1635.0,1.40772885]
[1745326570011,19.11048188,1635.5,1635.0,1.40772885]
[1745326570193,6.11477074,1635.4,1635.0,1.34657]
[1745326570412,12.99586042,1635.5,1635.0,1.34657]
[1745326570800,6.1152085,1635.3,1635.0,1.34657]
[1745326571525,6.11493098,1635.4,1635.0,0.7537]
[1745326571724,22.86181705,1635.5,1635.0,0.7537]
[1745326571911,12.9958321,1635.5,1635.0,0.7537]
[1745326572235,12.99560483,1635.5,1635.0,0.7537]
[1745326572394,12.18270483,1635.5,1635.0,0.7537]
[1745326572598,6.11419944,1635.6,1635.0,3.7537]
[1745326572798,6.11419944,1635.6,1635.1,0.37537]
[1745326573219,6.11439794,1635.5,1635.1,0.37537]
[1745326573434,12.22845562,1635.6,1635.1,0.37537]
[1745326573743,12.22845562,1635.6,1635.1,0.43652099]
[1745326573922,6.11435449,1635.5,1635.1,0.37537]
[1745326574135,6.11419944,1635.6,1635.1,0.37537]
[1745326574136,12.22846751,1635.6,1635.1,0.37537]
[1745326574427,6.1143476,1635.5,1635.1,0.37537]
[1745326574741,6.11419944,1635.6,1635.1,0.37537]
[1745326575143,16.73299356,1635.7,1635.1,6.49099056]
[1745326575144,12.182119,1635.7,1635.1,6.49099056]
[1745326575295,6.11335104,1635.8,1635.2,7.51673498]
[1745326575498,6.11335104,1635.8,1635.3,5.174]
[1745326575700,6.11335104,1635.8,1635.4,0.7523]
[1745326575999,0.7995,1635.9,1635.4,0.7523]
[1745326576200,6.11407599,1635.6,1635.3,5.174]
[1745326576603,6.11407599,1635.6,1635.3,5.76663]
[1745326576801,6.11322751,1635.8,1635.4,0.7523]
[1745326577041,6.11289428,1635.9,1635.4,0.7523]
[1745326577201,6.11335433,1635.8,1635.4,0.7523]
[1745326577395,6.11289428,1635.9,1635.4,0.81343829]
[1745326577599,6.11331659,1635.8,1635.4,0.7523]
[1745326578215,6.11331659,1635.8,1635.4,1.404193]
[1745326578723,6.11360457,1635.7,1635.4,0.7523]
[1745326579231,6.11383368,1635.7,1635.4,0.7523]
[1745326580129,6.11210641,1636.1,1635.5,0.7523]
[1745326580130,6.11300979,1635.9,1635.5,0.7523]
[1745326580301,6.11326626,1635.8,1635.5,0.7523]
[1745326580496,6.11362502,1635.7,1635.5,0.7523]
[1745326580712,12.98236814,1635.8,1635.6,5.174]
[1745326580923,2.05383681,1635.8,1635.3,0.804]
[1745326581101,6.1140598,1635.6,1635.4,5.174]
[1745326581301,6.11338946,1635.8,1635.5,0.804]
[1745326581520,6.11359733,1635.7,1635.5,0.804]
[1745326581726,6.11326397,1635.8,1635.5,1.4018]
[1745326582038,6.11322476,1635.8,1635.5,1.4018]
[1745326582427,12.22641436,1635.9,1635.5,1.4018]
[1745326582611,6.11320718,1635.9,1635.5,1.4018]
[1745326582942,6.11278925,1636.0,1635.6,0.804]
[1745326583113,6.11285947,1635.9,1635.6,0.804]
[1745326583300,12.2255403,1636.0,1635.6,0.804]
[1745326583697,6.11275105,1636.0,1635.6,0.804]
[1745326584023,6.11275105,1636.0,1635.6,0.86513197]
[1745326584933,12.22552506,1636.0,1635.6,0.804]
[1745326585242,6.11285186,1635.9,1635.6,0.804]
[1745326585438,12.22552506,1636.0,1635.6,0.804]
[1745326585735,6.11275105,1636.0,1635.6,0.804]
[1745326585933,12.22555157,1636.0,1635.6,0.804]
[1745326586117,6.11275105,1636.0,1635.6,0.804]
[1745326586315,12.22555157,1636.0,1635.6,0.86513196]
[1745326586516,6.11275105,1636.0,1635.6,0.86513196]
[1745326586721,6.11286673,1635.9,1635.6,0.804]
[1745326587051,12.22605331,1635.9,1635.6,0.804]
[1745326587223,12.22597663,1635.9,1635.6,0.804]
[1745326587414,6.11286673,1635.9,1635.6,0.804]
[1745326588027,12.2259685,1635.9,1635.6,0.804]
[1745326588229,6.11286673,1635.9,1635.6,0.804]
[1745326589343,12.22549634,1636.0,1635.6,0.804]
[1745326589863,6.11270716,1636.0,1635.6,0.804]
[1745326590022,12.2254932,1636.0,1635.6,0.804]
[1745326590217,6.11270716,1636.0,1635.6,0.804]
[1745326590422,0.4044592,1636.2,1635.7,0.7679]
[1745326590622,0.4044592,1636.2,1636.0,9.11226374]
[1745326590835,0.4044592,1636.2,1636.1,11.60372315]
[1745326591054,0.4044592,1636.2,1636.1,7.85234859]
[1745326591250,0.4044592,1636.2,1636.1,1.67912637]
[1745326591454,0.4044592,1636.2,1636.1,5.9409]
[1745326592460,0.4044592,1636.2,1636.1,16.05268257]
[1745326592955,0.4044592,1636.2,1636.1,19.80405713]
[1745326593325,5.93628504,1636.3,1636.2,7.42962228]
[1745326593514,0.28991813,1637.6,1636.2,7.42962228]
[1745326593515,0.28991813,1637.6,1636.8,0.7679]
[1745326593717,0.28991813,1637.6,1637.2,3.75137456]
[1745326593951,0.28991813,1637.6,1637.4,0.7679]
[1745326594752,0.28991813,1637.6,1637.4,0.82897068]
[1745326595039,0.28991813,1637.6,1637.4,1.29163925]
[1745326595247,0.28991813,1637.6,1637.4,0.82897068]
[1745326595458,6.39667366,1637.6,1637.4,0.7679]
[1745326595774,0.9295855,1637.6,1637.0,0.7679]
[1745326595937,0.28991813,1637.6,1637.1,0.7679]
[1745326596135,0.28991813,1637.6,1637.3,3.75137456]
[1745326596458,0.28991813,1637.6,1637.4,0.7679]
[1745326596660,6.10687022,1637.5,1637.1,0.7679]
[1745326596859,6.39655972,1637.6,1637.1,1.50699]
[1745326597059,6.39665931,1637.6,1637.2,0.06107455]
[1745326597260,6.39670425,1637.6,1637.2,0.06107073]
[1745326597450,0.28991813,1637.6,1637.3,0.7679]
[1745326597648,6.396517,1637.6,1637.3,0.7679]
[1745326597873,6.1072273,1637.5,1637.0,0.7679]
[1745326598080,6.10734194,1637.4,1637.0,1.50699]
[1745326598238,0.28991813,1637.6,1637.1,0.7679]
[1745326598579,0.28991813,1637.6,1637.3,0.7679]
[1745326598778,0.28991813,1637.6,1637.3,3.7679]
[1745326598935,0.28991813,1637.6,1637.3,0.7679]
[1745326599141,0.28991813,1637.6,1637.1,3.75137456]
[1745326599142,6.10759693,1637.4,1637.1,0.7679]
[1745326599449,6.10759693,1637.4,1636.6,3.0]
[1745326599450,6.10798924,1637.2,1636.8,0.7679]
[1745326600339,6.71851375,1637.3,1636.8,0.82898476]
[1745326600534,6.10818239,1637.2,1636.8,0.7679]
[1745326600774,6.10870869,1637.1,1636.8,0.7679]
[1745326600934,6.10968355,1636.8,1636.4,0.8133]
[1745326601140,3.75137456,1636.8,1636.4,0.8133]
[1745326601369,3.75137456,1636.8,1636.1,6.622]
[1745326601370,6.11060189,1636.5,1636.1,0.8133]
[1745326601569,1.37276836,1636.8,1636.1,0.8133]
[1745326601774,3.0,1637.2,1636.3,0.8133]
[1745326601775,6.1089627,1637.0,1636.3,0.8133]
[1745326601977,10.4036791,1637.1,1636.3,0.8133]
[1745326602147,3.7826791,1636.7,1636.3,0.8133]
[1745326602347,9.89335336,1636.5,1635.8,0.8133]
[1745326602670,6.11125738,1636.4,1635.8,0.8133]
[1745326602971,6.11125738,1636.4,1635.8,3.8133]
[1745326603182,6.11135191,1636.3,1635.8,0.8133]
[1745326603752,3.7826791,1636.5,1635.9,0.06111724]
[1745326603753,9.89349016,1636.5,1635.9,0.06111724]
[1745326603956,6.11098208,1636.4,1635.8,0.8133]
[1745326604263,9.89348807,1636.5,1635.9,0.06111428]
[1745326604778,6.11076616,1636.5,1635.8,0.8133]
[1745326604941,6.622,1636.9,1636.0,0.8133]
[1745326605142,12.73127403,1636.9,1636.2,0.8133]
[1745326605343,12.21933995,1636.8,1636.3,0.06109789]
[1745326605544,12.21935018,1636.8,1636.2,0.8133]
[1745326605744,6.10951867,1636.8,1636.3,0.06110164]
[1745326606057,6.11012451,1636.7,1636.3,0.06110164]
[1745326606379,6.11012451,1636.7,1636.2,0.8133]
[1745326606780,6.1102534,1636.6,1636.2,0.8133]
[1745326607383,7.33206097,1636.7,1636.2,0.8133]
[1745326607552,6.11009133,1636.7,1636.3,0.06110802]
[1745326608567,6.11009133,1636.7,1636.2,0.8133]
[1745326609050,6.11009133,1636.7,1636.3,0.06110171]
[1745326609387,6.11009133,1636.7,1636.2,0.8133]
[1745326609585,6.1105009,1636.6,1636.2,0.8133]
[1745326609891,7.92015087,1636.7,1636.2,0.8133]
[1745326609892,6.11119404,1636.4,1636.2,0.8133]
[1745326610187,6.11162696,1636.3,1635.6,0.8133]
[1745326610385,6.87295296,1636.4,1635.6,0.8133]
[1745326610688,6.11115296,1636.4,1635.6,0.8133]
[1745326610861,3.7826791,1636.5,1635.6,0.8133]
[1745326611053,6.11113467,1636.4,1635.6,0.8133]
[1745326611248,6.11198758,1636.2,1635.6,0.8133]
[1745326611687,6.06836643,1636.4,1635.6,0.8133]
[1745326611895,7.3838,1636.2,1635.7,0.06112643]
[1745326612061,12.7337328,1636.2,1635.8,0.8133]
[1745326612411,12.7337328,1636.2,1635.9,0.06112223]
[1745326612581,6.622,1636.2,1635.9,0.06112223]
[1745326612829,12.73376903,1636.2,1635.9,0.06112223]
[1745326612959,6.622,1636.2,1635.8,0.8133]
[1745326613164,6.622,1636.2,1635.9,0.06111558]
[1745326613354,6.06836643,1636.6,1636.0,0.8133]
[1745326613555,1.2731274,1636.9,1636.2,0.8133]
[1745326613556,12.17770273,1636.9,1636.2,0.8133]
[1745326613760,12.17770273,1636.9,1636.1,1.3633]
[1745326614080,12.17770273,1636.9,1636.2,0.8133]
[1745326614284,6.10975817,1636.8,1636.2,0.8133]
[1745326614485,6.06836643,1636.9,1636.3,0.06109891]
[1745326614663,6.1099802,1636.7,1636.4,0.8133]
[1745326614995,6.10969506,1636.8,1636.4,0.8133]
[1745326614996,6.11050255,1636.6,1636.4,0.8133]
[1745326615202,6.11118488,1636.4,1636.0,0.8133]
[1745326615404,6.11087811,1636.5,1636.0,0.8133]
[1745326615571,6.11043531,1636.6,1636.1,0.06111012]
[1745326615898,6.06836643,1636.7,1636.2,0.8133]
[1745326616199,12.17842063,1636.7,1636.2,0.8133]
[1745326616398,12.17842063,1636.7,1636.3,0.06110028]
[1745326616399,6.06836643,1636.7,1636.3,0.06110028]
[1745326616697,6.06836643,1636.7,1636.4,0.8133]
[1745326617003,6.10818836,1637.2,1636.6,0.8133]
[1745326617162,6.10857943,1637.1,1636.6,0.8133]
[1745326617504,6.623,1637.3,1636.7,0.06108743]
[1745326617688,12.73063244,1637.3,1636.6,0.8133]
[1745326618565,6.1074214,1637.4,1636.7,0.0610815]
[1745326618755,6.1074214,1637.4,1636.8,0.8133]
[1745326618961,6.10704738,1637.5,1636.9,0.06107742]
[1745326619192,6.10704738,1637.5,1636.5,3.0]
[1745326619193,6.10731369,1637.4,1636.7,0.8133]
[1745326619398,1.22143611,1637.4,1636.9,0.8305]
[1745326619597,6.10814342,1637.2,1636.9,0.8305]
[1745326619817,6.10804353,1637.2,1636.9,0.8305]
[1745326619966,6.10860626,1637.1,1636.5,0.8305]
[1745326620165,6.10815659,1637.2,1636.5,0.8305]
[1745326620360,16.03276093,1637.4,1636.6,0.06108789]
[1745326620599,9.92524453,1637.4,1636.7,0.8305]
[1745326620777,9.10744453,1637.4,1636.7,0.8305]
[1745326620977,3.0,1637.4,1636.9,0.8305]
[1745326621180,6.10693313,1637.5,1637.0,0.06107773]
[1745326621697,3.0,1637.5,1637.1,0.8305]
[1745326622102,9.10691417,1637.5,1637.1,0.8305]
[1745326622463,6.10748407,1637.4,1637.1,0.8305]
[1745326622664,3.0,1637.5,1637.1,0.8305]
[1745326623103,3.0,1637.5,1637.2,0.0610701]
[1745326623312,0.28991813,1637.6,1637.2,0.0610701]
[1745326623603,0.28991813,1637.6,1637.1,0.8305]
[1745326624403,0.28991813,1637.6,1637.3,0.8305]
[1745326624799,6.39645131,1637.6,1637.3,0.8305]
[1745326625098,6.39647882,1637.6,1636.6,3.7826791]
[1745326625303,7.03626394,1637.6,1636.9,0.8305]
[1745326625508,7.03626394,1637.6,1637.0,0.06107355]
[1745326625715,0.28991813,1637.6,1636.9,0.8305]
[1745326625893,0.28991813,1637.6,1637.0,0.8305]
[1745326626202,0.28991813,1637.6,1637.2,0.8305]
[1745326626603,0.28991813,1637.6,1637.4,0.8305]
[1745326628204,10.81897067,1637.6,1637.2,0.8305]
[1745326628373,0.28991813,1637.6,1637.2,0.8305]
[1745326628768,0.28991813,1637.6,1637.3,0.06106697]
[1745326628984,6.39657591,1637.6,1637.3,0.06106697]
[1745326629276,6.10751534,1637.4,1637.0,0.8305]
[1745326629978,6.10751534,1637.4,1637.1,0.06107595]
[1745326630478,6.10690631,1637.5,1637.0,0.8305]